Cogmind - Beta 14 @@@ ROGUE MODE // 2025.04.23 @ 13:08:58 Player: nameimpending Result: Destroyed by G-34 Mercenary with Small Laser Performance ------------- Evolutions (1) 500 Regions Visited (3) 600 Robots Destroyed (16) 80 Value Destroyed (336) 336 Prototype IDs (0) 0 Alien Tech Used (0) 0 Bonus (33) 33 TOTAL SCORE: 1549 Bonus ------- Follower Combat Kills 33 Cogmind --------- Core Integrity 0/400 Matter 240/300 Energy 97/100 System Corruption 0% Temperature Cool (6) Movement Core (50) Location -9/Materials Parts ------- > --- POWER (1) -------- (None) > --- PROPULSION (4) --- (None) > --- UTILITY (2) ------ (None) > --- WEAPON (2) ------- (None) > --- INVENTORY (5) ---- Improved Heat Sink Small Storage Unit Small Storage Unit Peak State ------------ > --- POWER ------------ Ion Engine > --- PROPULSION ------- Light Treads Light Treads > --- UTILITY ---------- Small Storage Unit Improved Terrain Scanner > --- WEAPON ----------- Light Assault Rifle Light Assault Rifle > --- INVENTORY -------- Light Ion Engine Compact Wheel [Rating: 9] Favorites ----------- Power Ion Engine Engine Ion Engine Propulsion Light Treads Treads Light Treads Wheel Wheel Hover Unit Hover Unit Flight Unit Flight Unit Utility Small Storage Unit Device Improved Terrain Scanner Storage Small Storage Unit Weapon Light Assault Rifle Ballistic Gun Light Assault Rifle Ballistic Cannon Light Cannon Special Weapon Mining Laser Build | -11 -10 -10 -9 ------- Run | Yrd Mat Min Mat Slots Evolved 2 | . . . 2 Power . | . . . . Propulsion 2 | . . . 2 Utility . | . . . . Weapon . | . . . . Parts Attached 29 | 8 11 . 10 Power 4 | 2 2 . . Engine 4 | 2 2 . . Core . | . . . . Reactor . | . . . . Propulsion 12 | 2 4 . 6 Treads 3 | 2 . . 1 Leg . | . . . . Wheel 2 | . 1 . 1 Hover 4 | . 2 . 2 Flight 3 | . 1 . 2 Utility 3 | 2 1 . . Device 1 | 1 . . . Storage 2 | 1 1 . . Processor . | . . . . Hackware . | . . . . Protection . | . . . . Artifact . | . . . . Weapon 10 | 2 4 . 4 Energy Gun . | . . . . Energy Cannon . | . . . . Ballistic Gun 5 | 2 2 . 1 Ballistic Cannon 4 | . 2 . 2 Launcher . | . . . . Special Weapon 1 | . . . 1 Impact Weapon . | . . . . Slashing Weapon . | . . . . Piercing Weapon . | . . . . Special Melee Weapon . | . . . . Unidentified Prototypes . | . . . . Parts Lost 15 | . 3 . 12 Power 2 | . 1 . 1 Propulsion 9 | . 1 . 8 Utility 1 | . 1 . . Weapon 3 | . . . 3 Highest Loss Streak 7 | . 3 . 7 To Critical Strikes . | . . . . Average Slot Usage (%) 84 | . 92 71 48 Engine 11 | . 13 14 2 Treads 16 | . 21 . . Wheel 1 | . 1 . 1 Hover 7 | . 5 28 14 Flight 1 | . . . 7 Device 7 | . 9 . . Storage 13 | . 14 14 11 Ballistic Gun 21 | . 25 14 5 Peak Build Rating 9 | 9 9 6 6 Average Rating 7 | 6 7 5 4 On Entrance 5 | . 9 5 6 Naked Turns 2 | . . . 2 Heaviest Build 14 | 13 14 11 11 Greatest Support 40 | 40 40 12 20 Greatest Overweight (x) 3 | . 3 . 1 Average Overweight (x) . | . . . . Largest Inventory Capacity 8 | 8 8 8 8 Average Capacity 7 | 7 8 8 7 Most Carried 8 | 2 8 8 8 Average Carried 4 | 1 4 7 5 Final Capacity 8 | 8 8 8 5 Final Carried 8 | 2 7 8 3 Class Distribution -------------------- 100% | Mutant Dominant Class ---------------- Mutant | -10/Materials Mutant | -10/Mines Mutant | -9/Materials Resources | -11 -10 -10 -9 ----------- Run | Yrd Mat Min Mat Matter Collected 564 | 298 247 . 19 Remotely . | . . . . Salvage Created 522 | 124 360 . 38 Parts 27 | 7 19 . 1 Haulers Intercepted . | . . . . Recyclers Shooed 1 | 1 . . . Parts Field Recycled . | . . . . Retrieved Matter . | . . . . Parts Self-Destructed . | . . . . Prevented . | . . . . Kills | -11 -10 -10 -9 ------- Run | Yrd Mat Min Mat Combat Hostiles Destroyed 12 | . 9 . 3 Guns 11 | . 9 . 2 Cannons 1 | . . . 1 Classes Destroyed 5 | 2 3 . . Tunneler 2 | 2 . . . Recycler 1 | 1 . . . Watcher 1 | . 1 . . Swarmer 6 | . 3 . 3 Grunt 6 | . 6 . . Best Kill Streak 4 | 3 4 . 3 Combat Bots Only 4 | . 4 . 3 Max Kills in Single Turn 1 | 1 1 . 1 Gunslinging . | . . . . Exploded . | . . . . Melee . | . . . . Uniques/NPCs Destroyed . | . . . . Combat | -11 -10 -10 -9 -------- Run | Yrd Mat Min Mat Hostile Shots Fired 227 | . 95 . 132 Missed 64 | . 23 . 41 Damage Taken 1721 | . 783 . 938 Core 514 | . 112 . 402 Absorbed by Shields . | . . . . Core Remaining (%) 77 | 100 . 55 . Volleys Fired 73 | 9 42 . 22 Largest 2 | 2 2 . 2 Hottest 100 | 40 55 . 100 Shots Fired 130 | 18 84 . 28 Gun 112 | 18 79 . 15 Cannon 16 | . 5 . 11 Launcher . | . . . . Special 2 | . . . 2 Kinetic 128 | 18 84 . 26 Thermal 2 | . . . 2 Explosive . | . . . . Electromagnetic . | . . . . Robot Hit Streak 8 | 3 8 . 4 Robot Miss Streak 4 | 2 4 . 2 Penetration Max . | . . . . Secondary Targets 1 | . 1 . . Max Gunslinging Chain 1 | . 1 . . Shots Hit Robots 71 | 11 48 . 12 Core Hits 31 | 5 21 . 5 Critical Kills 1 | . 1 . . Critical Parts Destroyed . | . . . . Critical Strikes 1 | . 1 . . Destroy 1 | . 1 . . Melee Attacks . | . . . . Impact . | . . . . Slashing . | . . . . Piercing . | . . . . Sneak Attacks . | . . . . Combat Hostiles . | . . . . Follow-up Attacks . | . . . . Damage Inflicted 717 | 95 480 . 142 Guns 671 | 95 480 . 96 Cannons 35 | . . . 35 Explosions . | . . . . Melee . | . . . . Ramming 11 | . . . 11 Kinetic 706 | 95 480 . 131 Thermal . | . . . . Explosive . | . . . . Electromagnetic . | . . . . Impact . | . . . . Slashing . | . . . . Piercing . | . . . . Highest Corruption . | . . . . Average Corruption . | . . . . Corruption Purged . | . . . . Corruption Blocked . | . . . . Overload Shots . | . . . . Overflow Damage . | . . . . Projectiles . | . . . . Explosions . | . . . . Melee . | . . . . Knockbacks . | . . . . Impact . | . . . . Kinetic . | . . . . Secondary . | . . . . Self-Inflicted Damage 5 | . . . 5 Shots . | . . . . Rammed 5 | . . . 5 Targets Rammed 5 | . . . 5 Kicked . | . . . . Crushed . | . . . . Highest Temperature 36 | . 36 . 24 Average Temperature 12 | . 13 . 9 Received Heat Transfer 573 | . 345 . 228 Siege Activations . | . . . . Robots Corrupted . | . . . . Combat Hostiles . | . . . . Parts Fried . | . . . . Impact Corruptions . | . . . . Robots Melted . | . . . . Combat Hostiles . | . . . . Parts Melted . | . . . . Heat Transferred . | . . . . Parts Sabotaged . | . . . . Parts Stolen . | . . . . Parts Stripped . | . . . . Power Chain Reactions . | . . . . Alert | -11 -10 -10 -9 ------- Run | Yrd Mat Min Mat Peak Influence 285 | 15 285 99 199 Initial 99 | . 9 99 38 Average 99 | 7 112 99 120 Maximum Alert Level 1 | . 1 . . Low Security (%) 91 | 100 87 100 100 Level 1 8 | . 12 . . Level 2 . | . . . . Level 3 . | . . . . Level 4 . | . . . . Level 5 . | . . . . High Security . | . . . . Max Security . | . . . . Squads Dispatched 5 | . 4 . 1 Investigation 2 | . 2 . . Extermination . | . . . . Reinforcement 3 | . 2 . 1 Assault . | . . . . Garrison . | . . . . Intercept . | . . . . Searches Triggered . | . . . . Construction Impeded . | . . . . Haulers Reinforced . | . . . . Active Scanning Responses . | . . . . Cargo Convoy Interrupts . | . . . . Stealth | -11 -10 -10 -9 --------- Run | Yrd Mat Min Mat Distress Signals 5 | . 2 . 3 Communications Jammed . | . . . . Distress Signals . | . . . . Times Spotted 55 | . 33 . 22 Peak Tracking Total 12 | . 7 . 12 Tactical Retreats 5 | . 4 . 1 Traps | -11 -10 -10 -9 ------- Run | Yrd Mat Min Mat Traps Triggered 1 | . 1 . . Indirectly . | . . . . Trap Hack Attempts . | . . . . Triggered . | . . . . Disarmed . | . . . . Reprogrammed . | . . . . Reused . | . . . . Traps Extracted . | . . . . Installed . | . . . . Triggered . | . . . . Machines | -11 -10 -10 -9 ---------- Run | Yrd Mat Min Mat Machines Disabled 1 | . . . 1 Max in Single Turn 1 | . . . 1 Machines Repaired . | . . . . Machines Dismantled . | . . . . Machines Sabotaged . | . . . . Overloaded Fab Kills . | . . . . Hacking | -11 -10 -10 -9 --------- Run | Yrd Mat Min Mat Machines Accessed 10 | . 7 . 3 Terminals 9 | . 6 . 3 Fabricators . | . . . . Repair Stations . | . . . . Recycling Units 1 | . 1 . . Scanalyzers . | . . . . Garrison Access . | . . . . Total Hacks 31 | . 18 . 13 Successful 19 | . 12 . 7 Failed 12 | . 6 . 6 Catastrophic 3 | . 1 . 2 Database Lockouts . | . . . . Manual 29 | . 17 . 12 Terminals 30 | . 17 . 13 Fabricators . | . . . . Repair Stations . | . . . . Recycling Units 1 | . 1 . . Scanalyzers . | . . . . Garrison Access . | . . . . Terminal Hacks 3 | . 1 . 2 Terminal Index 1 | . . . 1 Recycling Unit Index 1 | . 1 . . Zone Layout 1 | . . . 1 Fabricator Hacks . | . . . . Repair Station Hacks . | . . . . Recycling Unit Hacks . | . . . . Scanalyzer . | . . . . Garrison Access Hacks . | . . . . Unauthorized Hacks 16 | . 11 . 5 Terminals 15 | . 10 . 5 Track 5 | . 3 . 2 Assimilate 2 | . 2 . . Botnet 6 | . 4 . 2 Operators 2 | . 1 . 1 Fabricators . | . . . . Repair Stations . | . . . . Recycling Units 1 | . 1 . . Tunnel 1 | . 1 . . Scanalyzers . | . . . . Garrison Access . | . . . . Data Cores Recovered . | . . . . Used . | . . . . Hacking Detections 8 | . 5 . 3 Full Trace Events . | . . . . Feedback Events . | . . . . Feedback Blocked . | . . . . Robot Schematics Acquired . | . . . . Robots Built . | . . . . Authchips . | . . . . Time . | . . . . Total Robot Build Rating . | . . . . Part Schematics Acquired . | . . . . Parts Built . | . . . . Authchips . | . . . . Time . | . . . . Total Part Build Rating . | . . . . Parts Repaired . | . . . . Time . | . . . . Parts Recycled . | . . . . Recycled Matter . | . . . . Retrieved Matter . | . . . . Retrieved Components . | . . . . Parts Scanalyzed . | . . . . Part Schematics Acquired . | . . . . Parts Damaged . | . . . . Bothacking | -11 -10 -10 -9 ------------ Run | Yrd Mat Min Mat Used RIF Installer . | . . . . Robots Hacked . | . . . . Non-combat . | . . . . Combat . | . . . . Robot Hacks Applied . | . . . . Relay Couplers Released . | . . . . Fabnet Peak Effective % . | . . . . Robots Rewired . | . . . . Allies Hacked . | . . . . Hacks Repelled . | . . . . Allies | -11 -10 -10 -9 -------- Run | Yrd Mat Min Mat Total Allies 1 | . . 1 . Largest Group 1 | . . 1 1 Highest-Rated Group 31 | . . 31 31 Highest-Rated Ally 31 | . . 31 31 Total Orders . | . . . . Ally Attacks 8 | . . . 8 Total Damage 125 | . . . 125 Kills 1 | . . . 1 Allies Corrupted . | . . . . Allies Melted . | . . . . Intel | -11 -10 -10 -9 ------- Run | Yrd Mat Min Mat Robot Analysis Total . | . . . . Derelict Logs Recovered . | . . . . Drone Launches . | . . . . Drone Recoveries . | . . . . Exploration | -11 -10 -10 -9 ------------- Run | Yrd Mat Min Mat Turns Passed 1264 | 171 867 34 192 Spaces Moved 958 | 92 597 51 218 Core 21 | 11 1 . 9 Treads 431 | 81 348 . 2 Legs . | . . . . Wheels 7 | . . . 7 Hover 449 | . 248 51 150 Flight 50 | . . . 50 Fastest Speed 37 | 50 56 56 37 Average Speed 102 | 146 116 56 56 Slowest Speed 200 | 160 200 56 160 Overloaded Moves . | . . . . Propulsion Burnouts . | . . . . Robots Hopped . | . . . . Cave-ins Triggered . | . . . . Exploration Rate (%) 32 | 7 75 12 34 Regions Visited 3 Branch Regions 1 Pre-discovered Areas 1 | . 1 . . Known Exits Taken . | . . . . Unknown Exits Taken 3 | 1 1 1 . Scrap Searched . | . . . . Spaces Dug 2 | . . . 2 Terrain Destroyed 2 | . . . 2 Melee . | . . . . Projectile 2 | . . . 2 AOE . | . . . . Terrain Rammed . | . . . . Walls Destroyed . | . . . . Machines Disabled . | . . . . Actions | -11 -10 -10 -9 --------- Run | Yrd Mat Min Mat Total 1115 | 110 692 55 258 Wait 33 | 1 28 4 . Move 955 | 91 596 50 218 Hop . | . . . . Pick Up 8 | 1 6 1 . Fast Attach 12 | 7 3 . 2 Attach 11 | . 3 . 8 Detach 6 | . 3 . 3 Swap 6 | 1 5 . . Drop 6 | . 6 . . Fire 73 | 9 42 . 22 Melee . | . . . . Ram 5 | . . . 5 Kick . | . . . . Crush . | . . . . Escape Stasis . | . . . . Rewire . | . . . . Trap . | . . . . Miscellaneous . | . . . . Route ------- -11/Scrapyard -10/Materials (discovered 2 exits: *Mat / [*Min]) -10/Mines -9/Materials (discovered 3 exits: [*Min x2] / [*Sto]) History --------- Turn | Location | Event 6 | -11/Scrapyard | Discovered new exit (range 15) 172 | -11/Scrapyard | Entered Materials 306 | -10/Materials | Build established: Mutant 437 | -10/Materials | Discovered new exit (range 16) 801 | -10/Materials | Lost 3 parts (1p1n1u) 1030 | -10/Materials | Discovered new exit (range 11) 1039 | -10/Materials | Entered Mines 1040 | -10/Mines | Discovered new exit (range 7) 1043 | -10/Mines | Received a Mining Laser from a helpful Derelict 1073 | -10/Mines | Entered Materials 1073 | -9/Materials | Accompanied by 1 ally 1073 | -9/Materials | Evolved 2 slots: Propulsion x2 1095 | -9/Materials | Discovered new exit (range 10) 1128 | -9/Materials | Discovered new exit (range 12) 1140 | -9/Materials | Discovered new exit (range 12) 1201 | -9/Materials | Lost 3 parts (3n) 1251 | -9/Materials | Core integrity fell below 50% 1261 | -9/Materials | Core integrity fell below 20% 1265 | -9/Materials | Destroyed by G-34 Mercenary with Small Laser Last Messages --------------- 01207_ Hover Unit destroyed. 01220_ Mining Laser destroyed. 01222_ W-16 Scout sends out distress signal. 01224_ K-01 Serf collects debris. 01225_ Flight Unit destroyed. 01229_ Lgt. Treads destroyed. 01231_ Slammed into S-10 Pest. 01231_ Destabilizing: System interference. 01231_ Lgt. Assault Rifle temporarily disabled. 01232_ K-01 Serf collects debris. 01244_ Atomic Centrifuge disabled. 01248_ Lgt. Assault Rifle destroyed. 01254_ Lgt. Cannon destroyed. 01254_ Slammed into S-10 Pest. 01255_ Hover Unit broken. 01255_ Destabilizing: Short circuit. 01256_ Slammed into G-34 Mercenary. 01258_ Broken Hover Unit destroyed. 01263_ S-10 Pest destroyed. 01264_ M-13 Machinist repairs G-34 Mercenary. Map ----- +----------------------------------------------------+ | ?# #???# "T" #???????????# # """" | | ?# ^ #???# #???????????# # """" | | ?# ########???#k #???????????# # | | ?# #??????????# | #???????????# # | | ?# """"" #??????????# #???######### #####+ | | ?# """"" #??????????####+####### # ### | | ?# """"" #########???# ! | | ?# # #???# < !% *%T | | ?# # #???# o = | | ?####+### + #???# ####+##" ##### | | ??? # ############# #?# #" !"| #???#### | | ??# """ # ## ## ### #"""""""#??????? | | ??# """ # ## ## a + #########??????? | | ??# """ # ## ## ### #??????????????? | | ??# # / ## g #?# #??????????????? | | ??# # ## ## #?# #??????????????? | | ??#= # ## ##a #????????????????????? | | ??####### ## ## #????????????????????? | | ????????# ## ## ##???????????????????? | | ????????# ########+### #???????????????????? | | ????????# #??# #???????????????????? | | ???????? #??# + ""????????????????? | | ???????## #??# # ""????????????????? | | ????????# #?##+####+## #???????????????????? | | ????????# #?# ## r ########?????????????? | | ????????# ??# """ ! ##@ #?????????????? | | ????????# ??# """ + u #?????????????? | | ???????? ??# """ ## """ #?????????????? | | ???????? ??# %=%= ## """ #?????????????? | | ????????? ??# "[* ## r """ #?????????????? | | ??????????????# " ## ?????????????????? | | ??????????????# "" ## ????????????????? | | ??????????????# ! ## ???????????????? | | ??????????????########### #### ??????????????? | | ????????????????????????? #??? ??????????????? | | ?????????????????????????#+##????? ??????????????? | | ???????????????????????????????????#?????????????? | | ?????????????????????????????????????????????????? | | ?????????????????????????????????????????????????? | | ?????????????????????????????????????????????????? | | ?????????????????????????????????????????????????? | | ?????????????????????????????????????????????????? | | ?????????????????????????????????????????????????? | | ?????????????????????????????????????????????????? | | ?????????????????????????????????????????????????? | | ?????????????????????????????????????????????????? | | ?????????????????????????????????????????????????? | | ?????????????????????????????????????????????????? | | ?????????????????????????????????????????????????? | | ?????????????????????????????????????????????????? | +----------------------------------------------------+ Best States ------------- Heat Dissipation 28 Energy Generation 10 Energy Capacity 250 Matter Stores 300 Matter Capacity 300 Sight Range 16 Terrain Scan Range 16 Terrain Scan Density 10 Evasion (%) 62 Recoil Reduction 2 Item Schematics ----------------- None Robot Schematics ------------------ None Fabricated ------------ Nothing Alien Tech Used ----------------- None Achievements -------------- None Challenges ------------ None Game ------ Seed MeleeCompanionChainsaw Manual? 0 Play Time 00:15:37 Cumulative 50.9 hours Start 2025.04.21 @ 18:26:38 End 2025.04.23 @ 13:08:58 Sessions 3 Manual Loads 0 Difficulty Rogue Special Mode None Game No. 51 Rogue 47 Adventurer 4 Explorer 0 Win Type - Total 0 Types 0/0/0/0/0/0/0/0/0 Lore% 20 Gallery% 43 Achievement% 35 Wizard Run 0 Options --------- Layout 1 ASCII 0 Keyboard 1 Movement Numpad Keybinds 0 Fullscreen 1 Font 24/Smallcaps Map View 50x35 Zoom Use 0% Tactical HUD 1 Map Filters NONE Filters NONE Steam 1 RUN: 6b542f62-c40d-493d-84db-b7377c3bfa9a